bitfinex/quotes_SOLUSD_20250307
["timestamp","ask_amount","ask_price","bid_price","bid_amount"]
[1741374132932,12.9920093,150.35,150.19,0.033]
[1741374133141,12.9920093,150.31,150.19,0.033]
[1741374133642,1.2539,150.3,150.19,0.033]
[1741374133866,1.2539,150.3,150.03,0.033]
[1741374133867,12.9920093,150.28,150.03,0.033]
[1741374134020,12.9920093,150.28,150.07,49.46954797]
[1741374134224,12.9920093,150.28,150.03,0.033]
[1741374134453,12.9920093,150.28,150.04,49.46954797]
[1741374134833,1.2209,150.25,150.03,0.033]
[1741374135816,12.9920093,150.23,150.03,0.033]
[1741374136025,153.4,150.24,150.04,49.46954797]
[1741374136244,173.4,150.24,150.03,0.033]
[1741374137042,176.7678514,150.24,150.03,0.033]
[1741374139447,156.7678514,150.24,150.03,49.50254797]
[1741374139834,176.7678514,150.24,150.03,0.033]
[1741374140025,20.0,150.22,150.03,0.033]
[1741374140229,20.0,150.18,149.99,0.033]
[1741374140757,25.97517525,150.18,149.99,0.033]
[1741374141463,1.1879,150.17,149.99,0.033]
[1741374144154,1.1879,150.17,149.94,49.46954797]
[1741374145063,1.1879,150.17,149.92,49.46954797]
[1741374145239,20.0,150.15,149.9,49.46954797]
[1741374145434,29.16,150.14,149.9,49.46954797]
[1741374145654,22.8796,150.05,149.87,0.033]
[1741374145955,1.1879,150.02,149.84,0.033]
[1741374146156,9.22,150.01,149.84,0.033]
[1741374147058,9.22,150.01,149.85,49.46954797]
[1741374147260,29.22,150.01,149.84,0.033]
[1741374147446,4.55702408,150.02,149.84,0.033]
[1741374147641,153.56,150.01,149.85,49.46954797]
[1741374148261,153.56,150.01,149.84,0.033]
[1741374148555,20.0,149.99,149.67,6.5378]
[1741374148754,20.0,149.99,149.78,49.46954797]
[1741374149359,20.0,149.99,149.77,49.46954797]
[1741374149658,20.0,149.98,149.79,49.46954797]
[1741374149837,20.0,149.98,149.77,49.46954797]
[1741374150039,21.1879,150.0,149.78,49.46954797]
[1741374150237,21.1879,150.0,149.8,49.46954797]
[1741374150850,21.1879,150.0,149.82,49.46954797]
[1741374151163,21.1879,150.0,149.78,49.46954797]
[1741374151349,21.1879,150.0,149.77,49.46954797]
[1741374151551,21.1879,150.0,149.76,49.46954797]
[1741374151857,21.1879,150.0,149.7,1.00120115]
[1741374151858,20.0,149.98,149.65,9.3]
[1741374152061,1.1879,149.9,149.65,49.46954797]
[1741374152249,20.0,149.88,149.64,49.46954797]
[1741374152764,20.0,149.88,149.68,49.46954797]
[1741374153070,20.0,149.86,149.65,49.46954797]
[1741374153267,20.0,149.86,149.63,49.50254797]
[1741374153440,20.0,149.84,149.63,0.033]
[1741374153641,20.0,149.84,149.63,49.50254797]
[1741374154057,20.0,149.84,149.63,0.033]
[1741374154263,2.8796,149.85,149.67,49.46954797]
[1741374154466,9.34,149.84,149.63,0.033]
[1741374154847,9.34,149.84,149.63,49.50254797]
[1741374155050,9.34,149.84,149.67,49.46954797]
[1741374155370,20.0,149.83,149.67,1.00174354]
[1741374155548,9.34,149.84,149.63,0.033]
[1741374155743,9.34,149.84,149.66,49.46954797]
[1741374155963,9.34,149.84,149.63,0.033]
[1741374156463,20.0,149.83,149.63,0.033]
[1741374156841,20.0,149.81,149.63,0.033]
[1741374157439,1.1879,149.8,149.58,0.033]
[1741374157657,20.0,149.78,149.58,0.033]
[1741374157859,20.0,149.76,149.58,49.50254797]
[1741374158175,20.0,149.76,149.58,0.033]
[1741374158379,20.0,149.76,149.59,49.46954797]
[1741374158673,20.0,149.76,149.6,49.46954797]
[1741374159074,23.27628204,149.76,149.6,49.46954797]
[1741374159459,23.27628204,149.76,149.58,0.033]
[1741374159662,23.27628204,149.76,149.58,49.50254797]
[1741374159963,23.27628204,149.76,149.6,49.46954797]
[1741374160152,23.27628204,149.76,149.61,49.46954797]
[1741374160349,23.27628204,149.76,149.59,49.46954797]
[1741374160554,23.27628204,149.76,149.6,49.46954797]
[1741374161075,23.27628204,149.76,149.59,49.46954797]
[1741374161372,23.27628204,149.76,149.61,0.033]
[1741374161762,154.12,149.77,149.63,49.46954797]
[1741374162076,9.58,149.82,149.69,49.46954797]
[1741374162272,9.58,149.82,149.7,49.46954797]
[1741374162469,9.58,149.82,149.69,49.46954797]
[1741374162669,9.56,149.83,149.67,49.46954797]
[1741374162872,9.56,149.83,149.63,1.00174477]
[1741374163076,29.56,149.83,149.62,10.58187667]
[1741374163266,29.56,149.83,149.64,49.46954797]
[1741374163473,29.56,149.83,149.66,49.46954797]
[1741374163857,29.56,149.83,149.65,49.46954797]
[1741374164072,150.77227211,149.85,149.7,49.46954797]
[1741374164253,150.77227211,149.85,149.65,6.2159]
[1741374164453,150.77227211,149.85,149.65,55.68544797]
[1741374164756,150.77227211,149.85,149.64,49.46954797]
[1741374164965,20.0,149.84,149.64,49.46954797]
[1741374165283,20.0,149.82,149.61,0.033]
[1741374165661,23.49334369,149.82,149.62,49.46954797]
[1741374165863,23.49334369,149.82,149.61,49.50254797]
[1741374166063,20.0,149.84,149.61,1.03517025]
[1741374166263,20.0,149.81,149.61,0.033]
[1741374166577,3.49371912,149.8,149.61,0.033]
[1741374166762,9.6,149.79,149.61,49.50254797]
[1741374166962,9.6,149.79,149.63,49.46954797]
[1741374167185,9.6,149.79,149.64,49.46954797]
[1741374167366,29.6,149.79,149.61,49.50254797]
[1741374167981,9.6,149.79,149.62,1.00229722]
[1741374168165,12.95778402,149.8,149.67,49.46954797]
[1741374168683,12.95778402,149.8,149.66,49.46954797]
[1741374169477,9.56,149.83,149.7,49.46954797]
[1741374169852,9.56,149.83,149.69,49.46954797]
[1741374170074,9.56,149.83,149.66,49.46954797]
[1741374170267,9.54,149.82,149.68,49.46954797]
[1741374170472,9.54,149.82,149.69,49.46954797]
[1741374170656,2.8796,149.97,149.77,49.46954797]
[1741374170856,2.8796,149.97,149.7,145.66172488]
[1741374170857,2.8796,149.97,149.81,49.46954797]
[1741374171073,3.33366666,149.93,149.77,49.46954797]
[1741374171280,14.11453172,149.91,149.72,9.64]
[1741374171482,9.67,149.91,149.75,49.46954797]
[1741374171789,14.19467901,149.91,149.76,49.46954797]
[1741374172082,14.19467901,149.91,149.81,49.46954797]
[1741374172284,14.19467901,149.91,149.74,59.10954797]
[1741374172785,14.19467901,149.91,149.75,49.46954797]
[1741374172985,14.19467901,149.91,149.76,49.46954797]
[1741374173184,0.03,149.91,149.81,49.46954797]
[1741374173390,0.03,149.91,149.82,49.46954797]
[1741374173566,0.03,149.91,149.81,49.46954797]
[1741374174079,0.03,149.91,149.8,59.08954797]
[1741374174271,0.03,149.91,149.82,49.46954797]
[1741374174456,0.03,149.91,149.81,49.46954797]
[1741374174660,0.03,149.91,149.8,59.08954797]
[1741374174892,0.03,149.91,149.81,49.46954797]
[1741374175092,0.03,149.91,149.82,49.46954797]
[1741374175274,0.03,149.91,149.83,49.46954797]
[1741374175588,0.03,149.91,149.79,1.0009676]
[1741374175589,0.03,149.91,149.82,49.46954797]
[1741374175793,0.03,149.91,149.83,49.46954797]
[1741374176296,0.03,149.91,149.84,49.46954797]
[1741374176669,0.03,149.91,149.82,49.46954797]
[1741374176864,0.03,149.91,149.79,49.46954797]
[1741374177095,0.03,149.91,149.81,49.46954797]
[1741374177894,0.03,149.91,149.82,49.46954797]
[1741374178271,0.03,149.91,149.83,49.46954797]
[1741374178475,0.03,149.91,149.84,49.46954797]
[1741374178800,0.03,149.91,149.88,49.46954797]
[1741374178970,0.03,149.91,149.81,6.2929]
[1741374179166,0.03,149.91,149.83,49.46954797]
[1741374179693,0.03,149.91,149.82,49.46954797]
[1741374180195,0.03,149.91,149.83,49.46954797]
[1741374180369,0.03,149.91,149.84,49.46954797]
[1741374180700,0.03,149.91,149.88,49.46954797]
[1741374180995,0.03,149.91,149.9,49.46954797]
[1741374181292,0.03,149.91,149.88,9.44]
[1741374181486,0.03,149.91,149.9,43.82554364]
[1741374181789,0.03,149.91,149.89,43.82554364]
[1741374182366,0.03,149.91,149.88,43.82554364]
[1741374182783,0.03,149.91,149.9,43.82554364]
[1741374183506,43.85554364,149.91,149.8,43.82554364]
[1741374183800,43.82554364,149.86,149.8,43.82554364]
[1741374184301,0.03,149.91,149.85,43.82554364]
[1741374184604,0.03,149.91,149.81,1.00093194]
[1741374185103,0.03,149.91,149.78,1.00055975]
[1741374185303,0.03,149.91,149.82,43.82554364]
[1741374185304,43.82554364,149.88,149.82,43.82554364]
[1741374185602,0.03,149.91,149.87,43.82554364]
[1741374185804,0.03,149.91,149.88,1.00031791]
[1741374186177,0.03,149.91,149.81,1.00023209]
[1741374186429,0.03,149.91,149.8,43.82554364]
[1741374186430,0.03,149.91,149.8,1.00068835]
[1741374186603,0.03,149.91,149.74,1.6171]
[1741374186604,9.38,149.9,149.76,1.00068835]
[1741374187610,9.38,149.9,149.81,43.82554364]
[1741374187901,43.82554364,149.87,149.8,43.82554364]
[1741374188201,43.82554364,149.82,149.69,15.9796]
[1741374188408,43.82554364,149.79,149.73,43.82554364]
[1741374188578,43.82554364,149.81,149.74,43.82554364]
[1741374188782,9.34,149.83,149.69,7.64117479]
[1741374189107,9.34,149.88,149.69,7.64117479]
[1741374189403,43.82554364,149.87,149.81,43.82554364]
[1741374189583,43.82554364,149.87,149.69,8.86274699]
[1741374189584,9.34,149.88,149.7,312.0]
[1741374189775,53.16554364,149.88,149.71,1.00110813]
[1741374190002,9.34,149.88,149.72,16.0191]
[1741374190193,43.82554364,149.88,149.73,1.00088874]
[1741374190396,43.82554364,149.88,149.82,43.82554364]
[1741374190613,43.82554364,149.84,149.73,44.82643238]
[1741374190916,43.82554364,149.82,149.71,7.68064513]
[1741374191211,43.82554364,149.84,149.78,43.82554364]
[1741374191508,43.82554364,149.85,149.79,43.82554364]
[1741374192086,43.82554364,149.82,149.76,43.82554364]
[1741374192392,43.82554364,149.81,149.75,43.82554364]
[1741374192696,43.82554364,149.8,149.74,43.82554364]
[1741374193016,43.82554364,149.79,149.73,43.82554364]
[1741374193192,9.3,149.86,149.7,43.82554364]
[1741374193193,43.82554364,149.76,149.7,43.82554364]
[1741374193386,43.82554364,149.73,149.67,43.82554364]
[1741374193689,43.82554364,149.71,149.63,6.2251]
[1741374194006,43.82554364,149.7,149.64,43.82554364]
[1741374194207,43.82554364,149.7,149.63,6.2251]
[1741374194208,43.82554364,149.69,149.63,43.82554364]
[1741374194397,43.82554364,149.67,149.6,0.033]
[1741374194599,43.82554364,149.68,149.62,43.82554364]
[1741374195097,43.82554364,149.66,149.6,43.85854364]
[1741374195399,43.82554364,149.63,149.6,0.033]
[1741374195902,43.82554364,149.65,149.6,0.033]
[1741374196106,9.22,149.68,149.6,44.05209082]
[1741374196289,9.22,149.68,149.6,0.033]
[1741374196789,9.22,149.68,149.6,44.05209082]
[1741374196979,9.22,149.68,149.6,0.033]
[1741374197610,9.22,149.68,149.6,0.0001]
[1741374197827,9.22,149.68,149.58,0.033]
[1741374199821,1.1878,149.69,149.58,44.05209082]
[1741374200010,9.18,149.67,149.6,44.01909082]
[1741374201454,9.18,149.67,149.58,0.033]
[1741374201721,144.68,149.66,149.57,0.033]
[1741374201920,144.68,149.66,149.57,0.0001]
[1741374202617,164.68,149.66,149.57,0.0001]
[1741374202819,2.8796,149.65,149.53,0.0001]
[1741374203020,20.0,149.64,149.5,0.033]
[1741374203206,2.8796,149.65,149.5,0.033]
[1741374204026,22.8796,149.65,149.5,0.0001]
[1741374204201,1.1877,149.64,149.5,0.0001]
[1741374204406,1.1877,149.64,149.48,0.033]
[1741374205405,1.1877,149.64,149.43,0.033]
[1741374206425,20.0,149.63,149.43,0.033]
[1741374207129,20.0,149.63,149.46,44.01909082]
[1741374207332,20.0,149.63,149.45,44.01909082]
[1741374207626,20.0,149.63,149.43,0.033]
[1741374207838,20.0,149.63,149.44,44.01909082]
[1741374208232,20.0,149.63,149.45,44.01909082]
[1741374208416,21.1877,149.64,149.45,44.01909082]
[1741374208619,21.1877,149.64,149.44,44.01909082]
[1741374208945,24.68022612,149.64,149.43,0.033]
[1741374209321,20.0,149.62,149.43,0.033]
[1741374209724,20.0,149.62,149.36,0.033]
[1741374209725,20.0,149.54,149.36,0.033]
[1741374210037,20.0,149.52,149.35,0.0001]
[1741374210335,20.0,149.5,149.35,0.0001]
[1741374210740,20.0,149.48,149.35,0.0001]
[1741374210930,21.1877,149.48,149.35,0.0001]
[1741374211528,1.1877,149.48,149.35,0.0001]
[1741374214640,21.1877,149.48,149.35,0.0001]
[1741374214845,1.1877,149.48,149.35,0.0001]
[1741374215049,1.1877,149.48,149.28,44.05209082]
[1741374215219,1.1877,149.48,149.32,44.01909082]
[1741374215723,1.1877,149.48,149.31,44.01909082]
[1741374215926,1.1877,149.48,149.3,44.01909082]
[1741374216242,1.1877,149.48,149.31,44.01909082]
[1741374216421,6.3167,149.49,149.34,44.01909082]
[1741374216622,9.18,149.47,149.33,6.5823]
[1741374217021,12.49050221,149.47,149.28,0.033]
[1741374217226,12.49050221,149.47,149.28,44.05209082]
[1741374217621,20.0,149.46,149.28,0.033]
[1741374220567,20.0,149.46,149.26,45.67801312]
[1741374220737,20.0,149.46,149.26,1.6589223]
[1741374221847,20.0,149.46,149.28,0.033]
[1741374222255,20.0,149.44,149.28,0.033]
[1741374222863,174.1,149.43,149.28,0.033]
[1741374223167,178.81035011,149.43,149.28,0.033]
[1741374225072,20.0,149.4,149.26,1.6589223]
[1741374226547,44.25247904,149.27,149.26,1.6589223]
[1741374226968,44.25247904,149.27,149.26,2.23e-05]
[1741374227657,53.27247904,149.29,149.26,2.23e-05]
[1741374227882,44.25247904,149.28,149.26,2.23e-05]
[1741374228288,33.15095524,149.4,149.26,2.23e-05]
[1741374228289,44.25247904,149.31,149.26,2.23e-05]
[1741374228578,44.25247904,149.3,149.26,2.23e-05]
[1741374228774,44.25247904,149.29,149.26,2.23e-05]
[1741374229280,44.25247904,149.28,149.26,2.23e-05]
[1741374229460,44.25247904,149.3,149.26,2.23e-05]
[1741374229662,44.25247904,149.3,149.24,44.25247904]
[1741374229868,44.25247904,149.31,149.25,44.25247904]
[1741374230367,44.25247904,149.32,149.26,44.25247904]
[1741374230772,44.25247904,149.32,149.22,1.00463631]
[1741374230987,44.25247904,149.31,149.25,44.25247904]
[1741374231179,44.25247904,149.3,149.21,1.00463631]
[1741374231383,9.0,149.34,149.25,44.25247904]
[1741374231692,44.25247904,149.3,149.24,44.25247904]
[1741374232673,44.25247904,149.3,149.2,1.00478087]
[1741374232674,44.25247904,149.27,149.19,15.4054]
[1741374232865,44.25247904,149.26,149.2,44.25247904]
[1741374233062,44.25247904,149.27,149.2,44.25247904]
[1741374233679,44.25247904,149.26,149.19,6.4454]
[1741374233986,9.0,149.34,149.24,44.25247904]
[1741374234283,44.25247904,149.28,149.19,7.45036162]
[1741374234505,44.25247904,149.27,149.21,44.25247904]
[1741374235575,44.25247904,149.28,149.22,44.25247904]
[1741374235787,8.88,149.33,149.26,44.25247904]
[1741374236086,44.25247904,149.31,149.25,44.25247904]
[1741374236292,44.25247904,149.3,149.24,44.25247904]
[1741374236463,8.88,149.33,149.25,44.25247904]
[1741374236789,44.25247904,149.3,149.24,44.25247904]
[1741374237698,44.25247904,149.31,149.24,44.25247904]
[1741374237898,44.25247904,149.31,149.25,44.25247904]
[1741374238070,44.25247904,149.31,149.24,44.25247904]
[1741374238566,148.35996724,149.35,149.26,29.47996343]
[1741374238767,29.47996343,149.35,149.29,29.47996343]
[1741374239182,29.47996343,149.31,149.25,29.47996343]
[1741374239384,8.84,149.31,149.19,13.148]
[1741374239570,38.31996343,149.31,149.24,29.47996343]
[1741374239772,29.47996343,149.32,149.26,29.47996343]
[1741374239972,29.47996343,149.31,149.25,29.47996343]
[1741374240170,29.47996343,149.3,149.23,29.47996343]
[1741374240397,29.47996343,149.31,149.24,29.47996343]
[1741374240563,29.47996343,149.31,149.25,29.47996343]
[1741374240768,29.47996343,149.31,149.19,7.45010738]
[1741374240769,29.47996343,149.32,149.26,29.47996343]
[1741374240966,29.47996343,149.3,149.19,6.4454]
[1741374241171,29.47996343,149.3,149.24,29.47996343]
[1741374241375,29.47996343,149.31,149.25,29.47996343]
[1741374241580,29.47996343,149.28,149.19,6.4454]
[1741374241780,29.47996343,149.28,149.22,29.47996343]
[1741374242197,29.47996343,149.28,149.17,29.51296343]
[1741374242198,8.82,149.29,149.17,0.033]
[1741374242366,29.47996343,149.25,149.18,29.47996343]
[1741374242571,38.29996343,149.29,149.18,1.00511243]
[1741374242895,8.82,149.29,149.18,1.00511243]
[1741374243080,38.29996343,149.29,149.23,29.47996343]
[1741374243281,38.29996343,149.29,149.17,36.21666343]
[1741374243282,149.82035011,149.43,149.28,29.47996343]
[1741374243583,29.47996343,149.38,149.32,29.47996343]
[1741374243766,8.88,149.42,149.31,29.47996343]
[1741374243967,29.47996343,149.36,149.3,29.47996343]
[1741374244169,8.88,149.42,149.29,29.47996343]
[1741374244170,29.47996343,149.35,149.29,29.47996343]
[1741374244372,29.47996343,149.34,149.28,29.47996343]
[1741374244597,29.47996343,149.35,149.29,29.47996343]
[1741374244766,29.47996343,149.3,149.17,0.033]
[1741374244969,29.47996343,149.18,149.13,0.033]
[1741374245169,29.47996343,149.14,149.09,6.4745]
[1741374245380,9.44775332,149.21,149.09,35.95446343]
[1741374245584,1.0044,149.23,149.09,35.95446343]
[1741374245585,1.0044,149.28,149.09,14.18732332]
[1741374245789,29.47996343,149.24,149.17,29.47996343]
[1741374245978,29.47996343,149.25,149.17,29.47996343]
[1741374246373,38.73996343,149.27,149.2,29.47996343]
[1741374246574,44.2601071,149.26,149.19,44.2601071]
[1741374246777,9.26,149.27,149.2,44.2601071]
[1741374247087,53.5201071,149.27,149.2,44.2601071]
[1741374247266,9.26,149.27,149.2,44.2601071]
[1741374247469,53.5201071,149.27,149.2,44.2601071]
[1741374247674,9.26,149.27,149.2,44.2601071]
[1741374248085,9.26,149.27,149.21,44.2601071]
[1741374248295,53.5201071,149.27,149.2,44.2601071]
[1741374248496,47.56523784,149.31,149.14,312.0]
[1741374248497,9.2,149.31,149.25,44.2601071]
[1741374249076,9.2,149.31,149.2,1.5608]
[1741374249585,9.2,149.31,149.2,2.5656267]
[1741374249780,9.2,149.31,149.21,1.00482993]
[1741374249978,9.18,149.35,149.21,1.00482993]
[1741374250189,53.4401071,149.35,149.28,44.2601071]
[1741374250386,44.2601071,149.34,149.27,44.2601071]
[1741374250575,44.2601071,149.33,149.27,44.2601071]
[1741374250897,9.18,149.35,149.27,44.2601071]
[1741374251081,44.2601071,149.34,149.28,44.2601071]
[1741374251395,44.2601071,149.3,149.23,44.2601071]
[1741374251578,44.2601071,149.27,149.2,45.8209071]
[1741374251782,44.2601071,149.26,149.2,1.5608]
[1741374251997,44.2601071,149.26,149.2,45.8209071]
[1741374252193,44.2601071,149.23,149.2,1.5608]
[1741374252496,44.2601071,149.22,149.18,6.6128]
[1741374252696,44.2601071,149.23,149.18,6.6128]
[1741374253086,44.2601071,149.22,149.18,6.6128]
[1741374253284,10.1644,149.28,149.18,6.6128]
[1741374253471,44.2601071,149.22,149.18,6.6128]
[1741374254181,44.2601071,149.2,149.14,1.6118]
[1741374254381,44.2601071,149.21,149.15,44.2601071]
[1741374254994,44.2601071,149.23,149.17,44.2601071]
[1741374255296,44.2601071,149.24,149.18,44.2601071]
[1741374255689,44.2601071,149.24,149.17,44.2601071]
[1741374255893,44.2601071,149.21,149.15,44.2601071]
[1741374256196,9.08,149.27,149.17,44.2601071]
[1741374256398,44.2601071,149.24,149.18,44.2601071]
[1741374256573,44.2601071,149.31,149.15,1.0052184]
[1741374256574,9.06,149.29,149.21,44.2601071]
[1741374256975,44.2601071,149.26,149.2,44.2601071]
[1741374257306,44.2601071,149.25,149.19,44.2601071]
[1741374257494,44.2601071,149.22,149.18,0.033]
[1741374257893,44.2601071,149.23,149.18,0.033]
[1741374258190,0.03,149.29,149.18,0.033]
[1741374258397,44.2601071,149.23,149.18,0.033]
[1741374258697,44.2601071,149.22,149.18,0.033]
[1741374258897,44.2601071,149.2,149.14,1.6118]
[1741374259194,44.2601071,149.18,149.14,1.6118]
[1741374259404,9.0,149.22,149.14,1.6118]
[1741374259702,44.2601071,149.19,149.14,1.6118]
[1741374260007,44.2601071,149.15,149.12,6.3085]
[1741374260192,44.2601071,149.13,149.08,0.033]
[1741374260584,44.2601071,149.14,149.08,44.2931071]
[1741374261302,44.2601071,149.17,149.11,44.2601071]
[1741374261600,44.2601071,149.19,149.13,44.2601071]
[1741374261797,44.2601071,149.2,149.14,44.2601071]
[1741374263091,44.2601071,149.19,149.13,44.2601071]
[1741374263482,44.2601071,149.2,149.13,44.2601071]
[1741374263684,0.03,149.29,149.17,44.2601071]
[1741374263888,8.94,149.27,149.18,44.2601071]
[1741374264080,44.2601071,149.23,149.17,44.2601071]
[1741374264276,44.2601071,149.23,149.16,44.2601071]
[1741374264797,44.2601071,149.22,149.16,44.2601071]
[1741374264985,44.2601071,149.24,149.14,44.2601071]
[1741374265194,44.2601071,149.21,149.12,1.00526726]
[1741374265388,44.2601071,149.21,149.15,44.2601071]
[1741374265596,44.2601071,149.21,149.14,44.2601071]
[1741374266290,44.2601071,149.22,149.16,44.2601071]
[1741374266606,44.2601071,149.28,149.21,44.2601071]
[1741374266786,44.2601071,149.27,149.21,44.2601071]
[1741374267181,44.2601071,149.26,149.2,44.2601071]
[1741374267377,44.2601071,149.25,149.19,44.2601071]
[1741374267606,44.2601071,149.22,149.15,44.2601071]
[1741374267802,44.2601071,149.21,149.11,7.0672056]
[1741374267998,44.2601071,149.2,149.13,44.2601071]
[1741374268302,44.2601071,149.19,149.13,44.2601071]
[1741374268488,8.88,149.25,149.16,44.2601071]
[1741374268696,29.51126534,149.23,149.17,29.51126534]
[1741374268882,29.51126534,149.22,149.13,1.00539055]
[1741374269078,8.88,149.25,149.17,29.51126534]
[1741374269407,29.51126534,149.23,149.13,7.71049055]
[1741374269608,29.51126534,149.26,149.2,29.51126534]
[1741374269809,29.51126534,149.25,149.18,29.51126534]
[1741374269984,29.51126534,149.22,149.16,29.51126534]
[1741374270308,29.54126534,149.23,149.16,29.51126534]
[1741374270504,0.03,149.23,149.17,29.51126534]
[1741374270683,0.03,149.23,149.19,29.51126534]
[1741374270885,0.03,149.23,149.2,29.51126534]
[1741374271191,0.03,149.23,149.19,29.51126534]
[1741374271394,29.54126534,149.23,149.13,1.03818173]
[1741374271580,29.54126534,149.23,149.16,29.51126534]
[1741374271782,0.03,149.23,149.17,29.51126534]
[1741374271986,0.03,149.23,149.19,29.51126534]
[1741374272183,0.03,149.23,149.21,29.51126534]
[1741374272413,0.03,149.23,149.22,29.51126534]
[1741374272596,0.03,149.23,149.21,29.51126534]
[1741374272805,0.03,149.23,149.22,29.51126534]
[1741374273000,0.03,149.23,149.22,30.51599459]
[1741374273200,0.03,149.23,149.22,29.51126534]
[1741374273713,0.03,149.23,149.21,29.51126534]
[1741374273917,0.03,149.23,149.19,29.51126534]
[1741374274117,29.54126534,149.23,149.15,9.78492398]
[1741374274916,29.54126534,149.23,149.16,29.51126534]
[1741374276409,29.54126534,149.23,149.17,29.51126534]
[1741374277392,29.51126534,149.21,149.13,0.033]
[1741374277587,29.51126534,149.21,149.14,29.51126534]
[1741374277998,29.51126534,149.21,149.15,29.51126534]
[1741374278192,29.51126534,149.22,149.15,29.51126534]
[1741374278796,0.03,149.23,149.17,29.51126534]
[1741374279289,0.03,149.23,149.19,29.51126534]
[1741374279513,0.03,149.23,149.21,29.51126534]
[1741374279701,0.03,149.23,149.19,29.51126534]
[1741374280016,0.03,149.23,149.18,29.51126534]
[1741374280322,0.03,149.23,149.2,29.51126534]
[1741374280504,0.03,149.23,149.19,29.51126534]
[1741374281203,0.03,149.23,149.2,29.51126534]
[1741374281994,0.03,149.23,149.21,29.51126534]
[1741374282996,0.03,149.23,149.22,29.51126534]
[1741374283204,0.03,149.23,149.19,29.51126534]
[1741374283593,0.03,149.23,149.18,29.51126534]
[1741374284000,29.54126534,149.23,149.17,29.51126534]
[1741374284207,29.54126534,149.23,149.16,29.51126534]
[1741374284515,0.03,149.23,149.18,29.51126534]
[1741374284720,0.03,149.23,149.19,29.51126534]
[1741374284893,0.03,149.23,149.18,29.51126534]
[1741374285099,0.03,149.23,149.17,29.51126534]
[1741374285502,29.54126534,149.23,149.16,29.51126534]
[1741374286419,29.54126534,149.23,149.17,29.51126534]
[1741374286927,0.03,149.23,149.17,29.51126534]
[1741374287107,0.03,149.23,149.18,29.51126534]
[1741374287310,0.03,149.23,149.17,29.51126534]
[1741374287719,0.03,149.23,149.19,29.51126534]
[1741374287917,0.03,149.23,149.2,29.51126534]
[1741374288314,0.03,149.23,149.19,29.51126534]
[1741374289330,0.03,149.23,149.15,1.00515086]
[1741374289331,0.03,149.23,149.22,29.51126534]
[1741374290425,0.03,149.23,149.21,29.51126534]
[1741374290627,0.03,149.23,149.19,29.51126534]
[1741374291327,0.03,149.23,149.18,29.51126534]
[1741374291714,29.51126534,149.21,149.15,29.51126534]
[1741374292239,29.54126534,149.23,149.16,29.51126534]
[1741374292929,29.51126534,149.2,149.13,0.033]
[1741374293233,29.51126534,149.19,149.13,0.033]
[1741374294014,29.51126534,149.19,149.13,29.54426534]
[1741374294623,29.51126534,149.2,149.14,29.51126534]
[1741374294825,29.51126534,149.21,149.14,29.51126534]
[1741374295039,0.03,149.23,149.14,29.51126534]
[1741374295231,29.51126534,149.21,149.14,29.51126534]
[1741374295456,29.51126534,149.2,149.14,29.51126534]
[1741374296167,29.51126534,149.2,149.13,29.54426534]
[1741374296866,29.51126534,149.2,149.14,29.51126534]
[1741374297342,0.03,149.23,149.14,29.51126534]
[1741374297541,29.51126534,149.22,149.16,29.51126534]
[1741374297742,29.54126534,149.23,149.17,29.51126534]
[1741374297943,0.03,149.23,149.18,29.51126534]
[1741374298145,29.51126534,149.21,149.15,29.51126534]
[1741374298740,29.51126534,149.2,149.14,29.51126534]
[1741374299359,29.51126534,149.19,149.13,29.54426534]
[1741374299737,29.51126534,149.19,149.13,0.033]
[1741374299974,29.51126534,149.19,149.13,29.54426534]
[1741374300451,29.51126534,149.2,149.13,0.033]
[1741374300651,29.54126534,149.23,149.17,29.51126534]
[1741374300865,29.51126534,149.21,149.15,29.51126534]
[1741374301081,0.03,149.23,149.15,29.51126534]
[1741374301377,29.51126534,149.19,149.13,0.033]
[1741374301550,29.51126534,149.21,149.15,29.51126534]
[1741374301754,0.03,149.23,149.18,29.51126534]